fUSD/lending_fUSD_20240319
["ID","MTS","AMOUNT","RATE_DAILY","PERIOD"]
[319519208,1710817848009,-6791.87868475,0.000498,2]
[319519209,1710817848019,-166.28701668,0.00049845,30]
[319519210,1710817848029,-884.31,0.00049863,120]
[319519211,1710817848038,-463.46,0.00049899,2]
[319519212,1710817848047,-463.46,0.00049999,2]
[319519213,1710817848058,-463.46,0.00049999,2]
[319519214,1710817848068,-463.46,0.00049999,2]
[319519215,1710817848077,-463.46,0.00049999,2]
[319519216,1710817848086,-463.46,0.00049999,2]
[319519217,1710817848095,-463.46,0.00049999,2]
[319519218,1710817848105,-463.46,0.00049999,2]
[319519219,1710817848114,-463.46,0.00049999,2]
[319519220,1710817848123,-463.46,0.00049999,2]
[319519221,1710817848132,-999.999999,0.0005,2]
[319519222,1710817848142,-9214.72582273,0.0005,120]
[319519223,1710817848151,-534.75544979,0.0005,4]
[319519224,1710817848161,-34814.08743309,0.0005,30]
[319519265,1710819031775,-354.24501864,0.00016888,2]
[319519266,1710819031787,-6.37454706,0.00016888,2]
[319519267,1710819031796,-529.37904197,0.00016888,2]
[319519268,1710819031805,-220.51929454,0.00016888,2]
[319519269,1710819031817,-301.48,0.00016888,2]
[319519270,1710819031829,-7.37974743,0.00016888,2]
[319519271,1710819031838,-432.62025257,0.00016889,2]
[319519272,1710819031849,-210.75939429,0.00016889,2]
[319519273,1710819031859,-206.20209918,0.0001689,2]
[319519274,1710819031867,-156.29969797,0.000169,2]
[319519275,1710819031877,-750.0,0.00017,3]
[319519276,1710819031887,-163.00784752,0.00018676,2]
[319519277,1710819031899,-150.0,0.00018677,2]
[319519278,1710819031908,-3929.62096104,0.00018678,2]
[319519279,1710819031944,-969.45652537,0.00018678,2]
[319519280,1710819031956,-3367.93087916,0.00018678,2]
[319519281,1710819031967,-919.32315803,0.00018678,2]
[319519282,1710819031979,-811.05669613,0.00018678,2]
[319519283,1710819032006,-753.66321503,0.00018678,2]
[319519284,1710819032017,-2301.62133535,0.00018678,2]
[319519285,1710819032041,-9257.36621895,0.00018678,2]
[319519286,1710819032052,-258.65033138,0.00018678,2]
[319519287,1710819032068,-764.82578984,0.00018678,2]
[319519288,1710819032077,-800.0,0.00019,3]
[319519289,1710819032087,-733.51050175,0.0002,2]
[319519290,1710819032098,-1174.33949825,0.0002,2]
[319519291,1710819032108,-1195.48,0.0002,2]
[319519292,1710819032117,-9999.99,0.0002,2]
[319519293,1710819032126,-499.99,0.0002,2]
[319519294,1710819032136,-150.99,0.0002,2]
[319519295,1710819032149,-555.52,0.0002,2]
[319519296,1710819032159,-999.99,0.0002,2]
[319519297,1710819032168,-1921.99,0.0002,2]
[319519298,1710819032177,-362.67,0.0002,2]
[319519299,1710819032187,-177.94,0.0002,2]
[319519300,1710819032197,-19373.70530424,0.00021,2]
[319519302,1710819032206,-600.0,0.000225,2]
[319519303,1710819032215,-612.42,0.000225,2]
[319519304,1710819032225,-723.0,0.000227,2]
[319519305,1710819032235,-121.97519751,0.000227,2]
[319519307,1710819032248,-57.61480249,0.000227,2]
[319519309,1710819032258,-191.6,0.00026033,2]
[319519311,1710819032267,-192.46829303,0.0002889,2]
[319519312,1710819032278,-433.27775746,0.0002889,2]
[319519313,1710819032288,-164.51,0.00029017,2]
[319519314,1710819032301,-439.45895503,0.000295,3]
[319519315,1710819032310,-1260.98429903,0.0002999,2]
[319519316,1710819032325,-1369.21710952,0.0002999,2]
[319519317,1710819032335,-1098.6591993,0.0003,4]
[319519318,1710819032344,-165.47,0.00031972,120]
[319519319,1710819032353,-1422.25568007,0.00032008,2]
[319519320,1710819032365,-577.74431993,0.00032008,2]
[319519321,1710819032374,-151.43,0.00032413,10]
[319519322,1710819032384,-409.49762275,0.00032426,4]
[319519323,1710819032397,-22862.43,0.00032471,2]
[319519324,1710819032407,-1000.0,0.00032496,2]
[319519325,1710819032416,-374.63,0.00032636,2]
[319519326,1710819032425,-165.1727658,0.00032721,2]
[319519327,1710819032435,-29959.2654636,0.00032731,2]
[319519328,1710819032447,-4657.96426151,0.00032731,2]
[319519340,1710819037843,-5078.62027489,0.00032731,2]
[319519342,1710819037853,-250.0,0.00032731,2]
[319519344,1710819037862,-250.0,0.00032867,2]
[319519346,1710819037873,-1000.0,0.00032993,2]
[319519347,1710819037883,-250.0,0.00033304,110]
[319519348,1710819037893,-323.33,0.00033304,2]
[319519349,1710819037905,-170.07,0.00033551,2]
[319519351,1710819037915,-257.61,0.00033697,2]
[319519353,1710819037924,-279.97713734,0.00033982,4]
[319519355,1710819037934,-544.64676788,0.00033983,4]
[319519357,1710819037943,-164.51,0.00034394,2]
[319519359,1710819037953,-416.03,0.00034646,2]
[319519361,1710819037963,-154.02,0.00034848,2]
[319519363,1710819037973,-374.63,0.00035376,2]
[319519365,1710819037983,-2405.0,0.00035468,51]
[319519367,1710819037992,-156.29969797,0.00035665,2]
[319519369,1710819038002,-151.43,0.00035838,10]
[319519371,1710819038012,-319.65212733,0.00035982,4]
[319519373,1710819038022,-500.0,0.00036153,2]
[319519375,1710819038032,-3777.29,0.00036153,2]
[319519377,1710819038042,-2926.48399458,0.00036253,4]
[319519379,1710819038055,-20255.64880244,0.00036253,4]
[319519381,1710819038065,-860.32261208,0.00036253,4]
[319519384,1710819038075,-1000.0,0.00036558,2]
[319519386,1710819038085,-154.25566363,0.000369,2]
[319519388,1710819038095,-449.35019207,0.00037581,4]
[319519390,1710819038105,-374.63,0.00038115,2]
[319519392,1710819038115,-2645.5,0.00038825,70]
[319519393,1710819038124,-165.1727658,0.0003889,2]
[319519394,1710819038135,-4044.22426239,0.000389,15]
[319519395,1710819038146,-416.03,0.00038977,2]
[319519396,1710819038157,-150.15,0.0003899,2]
[319519397,1710819038167,-64528.22085363,0.00039,30]
[319519398,1710819038177,-151.43,0.00039263,10]
[319519399,1710819038187,-164.51,0.00039771,2]
[319519400,1710819038197,-165.1727658,0.00039871,2]
[319519401,1710819038207,-382.3816899,0.00039879,12]
[319519402,1710819038217,-10618.0657,0.00039881,2]
[319519403,1710819038227,-10894.3521,0.00039881,2]
[319519404,1710819038237,-165.47,0.00039965,120]
[319519405,1710819038247,-13799.11259226,0.00039979,3]
[319519406,1710819038259,-1217.62956433,0.00039979,3]
[319519407,1710819038272,-390.26013856,0.00039979,3]
[319519408,1710819038282,-155.15409895,0.00039979,4]
[319519409,1710819038294,-186.1371261,0.0003998,4]
[319519410,1710819038304,-700.0,0.0003998,4]
[319519411,1710819038315,-7125.93045922,0.00039981,2]
[319519413,1710819038326,-70784.93851989,0.00039981,2]
[319519415,1710819038337,-12739.39299961,0.00039981,4]
[319519416,1710819038346,-1325.80857974,0.0004,4]
[319519417,1710819038356,-377627.49835078,0.0004,4]
[319519418,1710819038365,-292.6514104,0.0004042,16]
[319519419,1710819038376,-386.11588002,0.0004052,2]
[319519420,1710819038385,-1000.0,0.0004062,2]
[319519421,1710819038397,-152.0,0.00040875,3]
[319519422,1710819038406,-183.0,0.00041096,2]
[319519423,1710819038416,-2887.2,0.00042183,89]
[319519424,1710819038426,-151.43,0.00042687,10]
[319519425,1710819038436,-416.03,0.00043308,2]
[319519426,1710819038445,-152.0,0.00043492,4]
[319519427,1710819038455,-1000.0,0.00044682,2]
[319519428,1710819038465,-257.61,0.0004493,120]
[319519429,1710819038474,-5000.0,0.00044986,4]
[319519430,1710819038484,-327.12261434,0.00045,4]
[319519431,1710819038493,-164.51,0.00045147,2]
[319519432,1710819038502,-1000.0,0.000452,2]
[319519433,1710819038512,-3126.5,0.00045541,109]
[319519434,1710819038522,-769.50879591,0.00046,120]
[319519435,1710819038531,-500.0,0.00046,4]
[319519436,1710819038541,-152.0,0.00046109,5]
[319519437,1710819038551,-151.43,0.00046112,120]
[319519438,1710819038560,-161.031912,0.00046198,49]
[319519439,1710819038570,-151.031912,0.00046398,50]
[319519440,1710819038580,-161.031912,0.00046498,49]
[319519441,1710819038590,-323.33,0.00046626,2]
[319519442,1710819038601,-151.031912,0.00046798,49]
[319519443,1710819038611,-151.031912,0.00047198,61]
[319519444,1710819038620,-161.031912,0.00047398,57]
[319519445,1710819038630,-292.6514104,0.00047475,25]
[319519446,1710819038640,-151.031912,0.00047498,61]
[319519447,1710819038651,-416.03,0.00047638,2]
[319519448,1710819038660,-161.031912,0.00047798,61]
[319519449,1710819038747,-477.0,0.000479,35]
[319519450,1710819038757,-165.47,0.00047959,120]
[319519451,1710819038766,-151.031912,0.00048198,61]
[319519452,1710819038776,-161.031912,0.00048398,57]
[319519453,1710819038786,-157.031912,0.00048498,61]
[319519454,1710819038795,-152.0,0.00048726,6]
[319519455,1710819038805,-1000.0,0.00048744,2]
[319519456,1710819038815,-151.031912,0.00048798,62]
[319519457,1710819038824,-3368.39,0.00048899,117]
[319519458,1710819038834,-150.0,0.00049,45]
[319519459,1710819038843,-500.0,0.00049,4]
[319519460,1710819038853,-151.031912,0.00049198,62]
[319519461,1710819038862,-151.031912,0.00049398,57]
[319519462,1710819038872,-151.031912,0.00049498,62]
[319519463,1710819038881,-151.43,0.00049537,120]
[319519464,1710819038890,-500.0,0.00049587,30]
[319519465,1710819038901,-200.0,0.000496,30]
[319519466,1710819038911,-578.25884365,0.000497,10]
[319519467,1710819038920,-2250.54134782,0.000497,10]
[319519468,1710819038929,-3390.52782696,0.000497,10]
[319519469,1710819038939,-828.885846,0.00049787,2]
[319519470,1710819038949,-151.031912,0.00049798,62]
[319519471,1710819038958,-500.0,0.00049888,30]
[319519472,1710819038967,-500.0,0.00049987,30]
[319519473,1710819038976,-30057.74498862,0.0004999,120]
[319519474,1710819038986,-500.0,0.00049993,30]
[319519475,1710819038996,-1687.19599113,0.0005,30]
[319519476,1710819039005,-4047.0,0.0005,13]
[319519477,1710819039015,-375.6767116,0.0005,30]
[319519478,1710819039024,-500.0,0.0005,120]
[319519479,1710819039034,-500.0,0.0005,90]
[319519480,1710819039044,-500.0,0.0005,60]
[319519481,1710819039053,-500.0,0.0005,30]
[319519482,1710819039062,-400.0,0.0005,80]
[319519483,1710819039071,-500.0,0.0005,17]
[319519484,1710819039081,-500.0,0.0005,17]
[319519485,1710819039090,-500.0,0.0005,17]
[319519486,1710819039099,-500.0,0.0005,17]
[319519487,1710819039108,-500.0,0.0005,17]
[319519488,1710819039117,-500.0,0.0005,27]
[319519489,1710819039126,-9214.72582273,0.0005,120]
[319519490,1710819039136,-534.75544979,0.0005,4]
[319519491,1710819039146,-1403.992,0.0005,30]
[319519492,1710819039156,-387.64201907,0.0005,30]
[319519493,1710819039165,-6473.21804981,0.0005,4]
[319519494,1710819039175,-1820.61436146,0.0005,15]
[319519495,1710819039184,-254.87096548,0.0005,120]
[319519496,1710819039194,-214.66566469,0.0005,4]
[319519497,1710819039203,-254.15009224,0.0005,7]
[319519498,1710819039213,-3339.15497592,0.0005,4]
[319519499,1710819039223,-3339.15497592,0.0005,4]
[319519500,1710819039232,-1006.20733074,0.0005,120]
[319519501,1710819039242,-190.65272848,0.0005,30]
[319519502,1710819039251,-2363.72809597,0.0005,120]
[319519503,1710819039260,-477.0,0.0005,38]
[319519504,1710819039269,-267.9,0.0005,120]
[319519505,1710819039283,-900.18,0.0005,120]
[319519506,1710819039292,-500.0,0.0005,10]
[319519507,1710819039301,-500.0,0.0005,10]
[319519508,1710819039310,-500.0,0.0005,10]
[319519509,1710819039321,-500.0,0.0005,10]
[319519510,1710819039331,-500.0,0.0005,30]
[319519511,1710819039340,-500.0,0.0005,30]
[319519512,1710819039349,-2157.95637,0.0005,49]
[319519513,1710819039360,-500.0,0.0005,30]
[319519514,1710819039369,-500.0,0.0005,30]
[319519515,1710819039378,-500.0,0.0005,10]
[319519516,1710819039388,-210.0,0.0005005,30]
[319519517,1710819039399,-205.0,0.0005005,30]
[319519518,1710819039408,-205.0,0.0005005,30]
[319519519,1710819039417,-190.442797,0.00050137,30]
[319519520,1710819039426,-150.0,0.0005015,2]
[319519521,1710819039435,-333.031912,0.00050198,63]
[319519522,1710819039445,-222.031912,0.00050198,58]
[319519523,1710819039455,-828.885846,0.00050345,2]
[319519524,1710819039464,-205.87574156,0.0005037,45]
[319519525,1710819039474,-151.031912,0.00050398,64]
[319519526,1710819039483,-504.7413636,0.0005041,90]
[319519527,1710819039492,-500.0,0.0005041,60]
[319519528,1710819039503,-155.0,0.00050411,60]
[319519529,1710819039512,-333.031912,0.00050498,63]
[319519530,1710819039522,-222.031912,0.00050498,58]
[319519531,1710819039531,-164.51,0.00050524,2]
[319519532,1710819039541,-1000.0,0.000507,2]
[319519533,1710819039550,-333.031912,0.00050798,63]
[319519534,1710819039559,-222.031912,0.00050798,58]
[319519535,1710819039568,-175.02,0.00050894,2]
[319519536,1710819039577,-500.0,0.00050958,60]
[319519537,1710819039588,-190.442797,0.00050959,30]
[319519538,1710819039597,-155.0,0.00050959,60]
[319519539,1710819039607,-330.36238986,0.00051,51]
[319519540,1710819039616,-257.0,0.00051,100]
[319519541,1710819039626,-333.031912,0.00051198,63]
[319519542,1710819039636,-222.031912,0.00051198,58]
[319519543,1710819039647,-152.0,0.00051343,7]
[319519544,1710819039657,-151.031912,0.00051398,64]
[319519545,1710819039666,-200.0,0.00051405,30]
[319519547,1710819039676,-333.031912,0.00051498,63]
[319519549,1710819039686,-222.031912,0.00051498,58]
[319519550,1710819039696,-257.0,0.000515,101]
[319519551,1710819039706,-500.0,0.00051506,60]
[319519552,1710819039716,-155.0,0.00051507,60]
[319519553,1710819039726,-1000.0,0.000516,30]
[319519554,1710819039736,-220.0,0.000516,30]
[319519555,1710819039745,-251.4,0.000516,30]
[319519556,1710819039754,-349.0,0.000516,30]
[319519557,1710819039764,-190.442797,0.00051781,30]
[319519558,1710819039774,-333.031912,0.00051798,63]
[319519559,1710819039783,-222.031912,0.00051798,58]
[319519560,1710819039792,-1220.0,0.00051851,7]
[319519561,1710819039801,-416.03,0.00051969,120]
[319519562,1710819039811,-210.0,0.00052,30]
[319519563,1710819039820,-205.0,0.00052,30]
[319519564,1710819039830,-205.0,0.00052,30]
[319519565,1710819039839,-257.0,0.00052,102]
[319519566,1710819039848,-1110.04,0.00052,120]
[319519567,1710819039858,-842.77,0.00052,120]
[319519568,1710819039867,-500.0,0.00052054,60]
[319519569,1710819039877,-155.0,0.00052055,60]
[319519570,1710819039887,-333.031912,0.00052198,63]
[319519571,1710819039898,-222.031912,0.00052198,58]
[319519572,1710819039907,-421.46,0.00052219,30]
[319519573,1710819039916,-7216.5,0.00052257,117]
[319519574,1710819039926,-151.031912,0.00052398,64]
[319519575,1710819039935,-1110.04,0.0005241,120]
[319519576,1710819039945,-842.77,0.0005241,120]
[319519577,1710819039955,-333.031912,0.00052498,63]
[319519578,1710819039964,-222.031912,0.00052498,58]
[319519579,1710819039973,-257.0,0.000525,103]
[319519580,1710819039983,-178.05391174,0.00052548,120]
[319519581,1710819039993,-504.38804936,0.00052602,60]
[319519582,1710819040002,-155.0,0.00052602,120]
[319519583,1710819040012,-190.442797,0.00052603,30]
[319519584,1710819040022,-333.031912,0.00052798,63]
[319519585,1710819040032,-222.031912,0.00052798,58]
[319519586,1710819040043,-1110.04,0.00052821,120]
[319519587,1710819040054,-842.77,0.00052821,120]
[319519588,1710819040064,-151.43,0.00052961,120]
[319519589,1710819040075,-257.0,0.00053,104]
[319519590,1710819040086,-500.0,0.00053,120]
[319519591,1710819040096,-500.0,0.00053,120]
[319519592,1710819040106,-500.0,0.00053,120]
[319519593,1710819040116,-500.0,0.00053,120]
[319519594,1710819040126,-500.0,0.00053,120]
[319519595,1710819040135,-500.0,0.00053,120]
[319519596,1710819040144,-500.0,0.00053,120]
[319519597,1710819040157,-500.0,0.00053,120]
[319519598,1710819040166,-500.0,0.00053,120]
[319519599,1710819040175,-500.0,0.00053,120]
[319519600,1710819040184,-500.0,0.00053,120]
[319519601,1710819040194,-500.0,0.00053,120]
[319519602,1710819040203,-500.0,0.00053,30]
[319519603,1710819040213,-500.0,0.00053,30]
[319519604,1710819040223,-500.0,0.00053,30]
[319519605,1710819040232,-500.0,0.00053,30]
[319519606,1710819040242,-500.0,0.00053,30]
[319519607,1710819040251,-500.0,0.00053,30]
[319519609,1710819040261,-500.0,0.00053,30]
[319519611,1710819040270,-500.0,0.00053,30]
[319519613,1710819040280,-500.0,0.00053,30]
[319519615,1710819040290,-239.22,0.00053,30]
[319519616,1710819040306,-500.0,0.0005315,90]
[319519617,1710819040315,-155.0,0.0005315,120]
[319519618,1710819040324,-333.031912,0.00053198,63]
[319519619,1710819040333,-222.031912,0.00053198,58]
[319519620,1710819040343,-200.0,0.00053211,30]
[319519621,1710819040352,-800.0,0.00053211,30]
[319519622,1710819040361,-200.0,0.00053211,30]
[319519623,1710819040370,-1110.04,0.00053232,120]
[319519624,1710819040379,-842.77,0.00053232,120]
[319519625,1710819040389,-178.05391174,0.00053233,120]
[319519626,1710819040398,-151.031912,0.00053398,64]
[319519627,1710819040407,-190.442797,0.00053425,30]
[319519628,1710819040417,-333.031912,0.00053498,63]
[319519629,1710819040426,-222.031912,0.00053498,58]
[319519630,1710819040434,-257.0,0.000535,105]
[319519631,1710819040443,-1110.04,0.00053643,120]
[319519632,1710819040452,-842.77,0.00053643,120]
[319519633,1710819040462,-500.0,0.00053698,90]
[319519634,1710819040471,-155.0,0.00053698,120]
[319519635,1710819040480,-333.031912,0.00053798,63]
[319519636,1710819040489,-222.031912,0.00053798,58]
[319519637,1710819040499,-15037.4224,0.00053898,2]
[319519638,1710819040508,-210.0,0.0005394,30]
[319519639,1710819040517,-205.0,0.0005394,30]
[319519640,1710819040527,-205.0,0.0005394,30]
[319519641,1710819040536,-178.05391174,0.00053945,120]
[319519642,1710819040545,-152.0,0.0005396,8]
[319519643,1710819040554,-200.0,0.00054,54]
[319519644,1710819040563,-257.0,0.00054,106]
[319519645,1710819040572,-1110.04,0.00054054,120]
[319519646,1710819040581,-842.77,0.00054054,120]
[319519647,1710819040591,-153.74665039,0.00054098,60]
[319519648,1710819040600,-59999.999999,0.00054123,120]
[319519649,1710819040609,-333.031912,0.00054198,63]
[319519650,1710819040618,-222.031912,0.00054198,58]
[319519651,1710819040627,-500.0,0.00054246,90]
[319519652,1710819040636,-155.0,0.00054246,120]
[319519653,1710819040646,-190.442797,0.00054247,30]
[319519654,1710819040659,-200.0,0.00054308,30]
[319519655,1710819040668,-156.29969797,0.0005443,2]
[319519656,1710819040677,-1110.04,0.00054465,120]
[319519657,1710819040686,-842.77,0.00054465,120]
[319519658,1710819040695,-333.031912,0.00054498,63]
[319519659,1710819040704,-222.031912,0.00054498,58]
[319519660,1710819040713,-257.0,0.000545,107]
[319519661,1710819040723,-1407.0,0.00054521,30]
[319519662,1710819040732,-2511.5570561,0.0005453,32]
[319519663,1710819040742,-175.21565854,0.0005453,57]
[319519664,1710819040751,-216.78377606,0.0005453,2]
[319519665,1710819040760,-292.6514104,0.0005453,34]
[319519666,1710819040769,-345336.55524227,0.00054628,21]
[319519667,1710819040794,-329.91570733,0.00054628,21]
[319519668,1710819040825,-4146.45277639,0.00054628,21]
[319519669,1710819040841,-449.73080792,0.00054628,21]
[319519670,1710819040856,-1825.79898489,0.00054628,21]
[319519671,1710819041361,-778.48118376,0.00054628,21]
[319519672,1710819041373,-355.72425126,0.00054628,21]
[319519673,1710819041393,-1216.23586906,0.00054628,21]
[319519674,1710819041408,-490.18022914,0.00054628,21]
[319519675,1710819041435,-19702.2283655,0.00054628,21]
[319519676,1710819041448,-6231.33171274,0.00054628,21]
[319519682,1710819042936,-937.44288332,0.00036982,4]
[319519683,1710819042945,-250.0,0.00036983,2]
[319519684,1710819042955,-52979.33176716,0.00054628,21]
[319519685,1710819042966,-5961.06499882,0.00054628,21]
[319519686,1710819043096,-3720.0,0.00054628,21]
[319519687,1710819043197,-266.617,0.00054628,21]
[319519688,1710819043208,-2637.36940666,0.00054628,21]
[319519689,1710819043219,-6190.48007081,0.00054628,21]
[319519690,1710819043231,-18200.47440195,0.00054628,21]
[319519691,1710819043348,-10739.11813152,0.00054628,21]
[319519750,1710819046070,-270.16198,0.00036982,4]
[319519751,1710819065164,4808.0,0.0001246,2]
[319519752,1710819275029,317.4229103,0.0001246,2]
[319519753,1710819288919,320.22825083,0.0001246,2]
[319519754,1710819294530,155.0,0.00015,2]
[319519755,1710819578977,317.06360293,0.00015,2]
[319519757,1710819784635,1840.11251199,0.00015,2]
[319519758,1710819858176,173.47304012,0.00014988,2]
[319519759,1710819899696,156.77,0.00013569,2]
[319519760,1710819904809,4764.18312822,0.00014981,2]
[319519761,1710820050599,252.1,0.0001493,2]
[319519768,1710820087363,250.0,0.00014715,2]
[319519769,1710820094770,150.35,0.00011772,2]
[319519770,1710820128519,250.0,0.00014688,2]
[319519813,1710820171150,2126.02,0.00014649,2]
[319519815,1710820188309,239.43,0.00014677,2]
[319519820,1710820198731,173.47304012,0.00014913,2]
[319519821,1710820207474,200.0,0.00014623,2]
[319519823,1710820227362,1681.66,0.00014649,2]
[319519846,1710820232292,-535.3809211,0.00015006,2]
[319519847,1710820232304,-3062.02328033,0.00015006,2]
[319519848,1710820232317,-2974.46712891,0.00015006,2]
[319519849,1710820232327,-4695.13339267,0.00015006,2]
[319519850,1710820232337,-172.90777271,0.00015007,2]
[319519851,1710820232348,-342.89838954,0.00015007,2]
[319519852,1710820232358,-522.56926041,0.00015007,2]
[319519853,1710820232368,-548.10301066,0.00015007,2]
[319519854,1710820232379,-499.05442867,0.00015008,2]
[319519855,1710820232390,-403.5154761,0.00015009,2]
[319519856,1710820232399,-160.32262991,0.00015009,2]
[319519857,1710820232409,-1060.6246406,0.0001501,2]
[319519858,1710820232419,-484.15348319,0.00015011,2]
[319519859,1710820232430,-23188.28687588,0.00015011,2]
[319519860,1710820232440,-155.0,0.00015012,2]
[319519861,1710820232450,-5937.25706274,0.00015012,2]
[319519862,1710820232460,-12742.53062275,0.00015015,2]
[319519863,1710820232470,-300.0,0.00015024,2]
[319519864,1710820232480,-150.0,0.00015024,2]
[319519865,1710820232490,-499.99,0.00015025,2]
[319519866,1710820232501,-1072.92653139,0.00015025,2]
[319519867,1710820232511,-150.0,0.00015041,2]
[319519868,1710820232521,-4171.5,0.0001508,8]
[319519869,1710820232530,-1035.72685303,0.000151,2]
[319519870,1710820232540,-150.99,0.000151,2]
[319519871,1710820232550,-2766.26,0.000151,2]
[319519872,1710820232560,-9776.65,0.000151,2]
[319519873,1710820232571,-9540.67804284,0.0001513,2]
[319519874,1710820232581,-294.3946891,0.0001513,2]
[319519875,1710820232590,-972.34281315,0.0001513,2]
[319519876,1710820232600,-1000.0,0.00015131,2]
[319519878,1710820232610,-313.63,0.00015137,2]
[319519880,1710820232620,-40969.989,0.00015166,2]
[319519882,1710820232630,-162.4952,0.0001517,2]
[319519884,1710820232640,-784.54,0.00015176,2]
[319519886,1710820232650,-7824.17530975,0.0001527,2]
[319519888,1710820232660,-842.29,0.0001527,2]
[319519890,1710820232673,-224.99,0.0001527,2]
[319519892,1710820232683,-150.0,0.00015485,2]
[319519895,1710820232694,-155.0,0.000155,2]
[319519897,1710820232703,-384.19,0.00015688,2]
[319519899,1710820232715,-1250.46,0.00015795,2]
[319519901,1710820232726,-167.05,0.00015831,2]
[319519903,1710820232736,-156.77,0.00015833,2]
[319519905,1710820232747,-23900.0,0.00015979,2]
[319519907,1710820232760,-643.37964686,0.00016,2]
[319519909,1710820232771,-9999.99,0.00016116,2]
[319519911,1710820232781,-1216.73937758,0.000165,2]
[319519913,1710820232792,-438.0,0.00016527,2]
[319519915,1710820232802,-210.0,0.00016527,2]
[319519917,1710820232813,-472.93525651,0.00016612,2]
[319519919,1710820232823,-267.3106379,0.00016612,2]
[319519922,1710820232833,-20085.81990015,0.00016668,2]
[319519937,1710820232965,-471.07573653,0.00016668,2]
[319519939,1710820232977,-1675.94457362,0.00016668,2]
[319519942,1710820232997,-451.5072,0.00016668,2]
[319519946,1710820233025,-449.1466,0.00016668,2]
[319519949,1710820233036,-261.977,0.00016668,2]
[319519951,1710820233052,-564145.38014466,0.00016668,2]
[319519954,1710820233062,-213.24,0.00016712,2]
[319519956,1710820233071,-252.1,0.00016796,2]
[319519958,1710820233081,-169.67,0.00016829,2]
[319519960,1710820233091,-1500.0,0.000169,6]
[319519962,1710820233101,-750.0,0.00017,3]
[319519964,1710820233111,-195.51,0.00017038,2]
[319519966,1710820233121,-169.67,0.00017048,2]
[319519968,1710820233130,-784.54,0.00017073,2]
[319519970,1710820233140,-167.05,0.00017137,2]
[319519972,1710820233150,-169.67,0.00017268,2]
[319519974,1710820233160,-500.0,0.00017354,2]
[319519976,1710820233170,-2126.02,0.00017389,2]
[319519979,1710820233180,-169.67,0.00017487,2]
[319519981,1710820233190,-169.67,0.00017706,2]
[319519983,1710820233200,-385.24,0.00017808,10]
[319519985,1710820233209,-1235.4,0.00018075,2]
[319519987,1710820233219,-156.77,0.00018097,2]
[319519989,1710820233229,-293.0,0.00018179,2]
[319519991,1710820233239,-385.24,0.00018245,10]
[319519993,1710820233251,-167.05,0.00018444,2]
[319519995,1710820233261,-252.1,0.00018663,2]
[319519997,1710820233271,-385.24,0.00018681,10]
[319519999,1710820233281,-784.54,0.0001897,2]
[319520001,1710820233292,-331.83,0.00019,2]
[319520003,1710820233302,-385.24,0.00019117,10]
[319520005,1710820233312,-500.0,0.00019178,2]
[319520007,1710820233322,-385.24,0.00019553,10]
[319520009,1710820233333,-5000.0,0.0002,2]
[319520012,1710820233343,-193.28,0.0002,2]
[319520014,1710820233353,-2126.02,0.00020129,2]
[319520016,1710820233362,-156.77,0.00020361,2]